bitfinex-derivatives/quotes_BTCF0:USTF0_20251217
["timestamp","ask_amount","ask_price","bid_price","bid_amount"]
[1765986887775,5e-08,87670.0,87665.0,0.3608]
[1765986888173,5e-08,87670.0,87666.0,0.0114094]
[1765986888360,5e-08,87670.0,87669.0,0.3608]
[1765986888773,0.28592,87702.0,87669.0,0.3608]
[1765986888972,0.3608,87716.0,87701.0,0.3608]
[1765986889271,0.3608,87706.0,87677.0,0.3608]
[1765986889475,0.42323143,87711.0,87696.0,0.3608]
[1765986889672,0.3608,87707.0,87695.0,0.00017105]
[1765986890068,0.3608,87707.0,87698.0,0.3608]
[1765986890270,0.3608,87707.0,87698.0,0.34413]
[1765986890466,0.3608,87707.0,87685.0,0.3722069]
[1765986890672,0.3608,87707.0,87688.0,0.0114064]
[1765986891173,0.36097105,87712.0,87686.0,0.0114067]
[1765986891478,0.3608,87705.0,87690.0,0.00017105]
[1765986892261,0.00017105,87712.0,87690.0,5e-08]
[1765986892262,0.3722061,87691.0,87690.0,5e-08]
[1765986892466,0.3608,87691.0,87669.0,0.09990001]
[1765986892684,0.3608,87677.0,87669.0,0.09990001]
[1765986892973,0.3608,87691.0,87675.0,0.3608]
[1765986893173,0.3608,87691.0,87668.0,0.3608]
[1765986893479,0.0114075,87681.0,87668.0,0.3608]
[1765986893976,0.3608,87683.0,87668.0,0.3608]
[1765986894177,0.3608,87669.0,87658.0,0.3608]
[1765986894770,0.3608,87669.0,87650.0,0.3608]
[1765986894970,0.3608,87661.0,87650.0,0.3608]
[1765986895274,0.3608,87661.0,87641.0,0.3608]
[1765986895474,0.00017105,87668.0,87660.0,0.3608]
[1765986895981,5e-08,87668.0,87660.0,0.46070001]
[1765986896172,5e-08,87668.0,87663.0,0.0114098]
[1765986896378,5e-08,87668.0,87660.0,0.46070001]
[1765986896983,0.00200005,87668.0,87660.0,0.46070001]
[1765986897480,0.00200005,87668.0,87663.0,0.09990001]
[1765986898273,0.00200005,87668.0,87660.0,0.3608]
[1765986898572,0.3608,87664.0,87655.0,0.000171]
[1765986898970,0.3608,87664.0,87655.0,1e-07]
[1765986898971,0.0114105,87658.0,87655.0,1e-07]
[1765986899173,0.00100005,87668.0,87655.0,1e-07]
[1765986899480,0.0114042,87707.0,87655.0,1e-07]
[1765986899481,0.42323143,87680.0,87665.0,0.3608]
[1765986899778,0.0114033,87714.0,87693.0,0.0114058]
[1765986899974,0.3608,87716.0,87692.0,0.3608]
[1765986900281,0.3608,87700.0,87680.0,0.0114075]
[1765986900467,0.00017105,87699.0,87679.0,0.3608]
[1765986900667,0.3608,87715.0,87679.0,0.3608]
[1765986900871,0.0163962,87768.0,87714.0,0.3608]
[1765986900872,0.3608,87763.0,87714.0,0.3608]
[1765986901074,0.005,87768.0,87746.0,0.005]
[1765986901075,1e-07,87768.0,87746.0,0.005]
[1765986901368,1e-07,87768.0,87747.0,0.0113988]
[1765986901679,0.08909014,87803.0,87762.0,0.0113968]
[1765986901978,0.0113924,87797.0,87750.0,0.0113984]
[1765986902177,0.0113914,87805.0,87746.0,0.005]
[1765986902475,0.0113917,87802.0,87748.0,0.11395102]
[1765986902675,0.0366,87812.0,87751.0,0.0113982]
[1765986902885,0.00017093,87789.0,87772.0,0.00017093]
[1765986904075,0.00017093,87789.0,87772.0,3e-08]
[1765986904380,0.0113977,87757.0,87714.0,0.0114031]
[1765986904587,0.39944,87768.0,87707.0,0.01104]
[1765986904779,0.42323143,87750.0,87705.0,0.005]
[1765986904970,0.0114012,87729.0,87705.0,0.005]
[1765986905172,0.0114018,87725.0,87708.0,9e-08]
[1765986905473,0.0114028,87717.0,87668.0,0.011409]
[1765986905781,0.0114025,87719.0,87674.0,0.0114083]
[1765986905982,0.42323143,87720.0,87650.0,0.42323143]
[1765986905983,0.42323143,87720.0,87690.0,7e-08]
[1765986906380,0.0570108,87722.0,87653.0,0.011411]
[1765986906686,0.0570108,87722.0,87640.0,0.42323143]
[1765986906687,0.00017103,87701.0,87661.0,0.01141]
[1765986906890,0.00017103,87701.0,87654.0,0.0114109]
[1765986907084,0.42323143,87700.0,87654.0,0.0114109]
[1765986907385,0.25008671,87699.0,87647.0,0.07672]
[1765986907578,0.25008671,87699.0,87650.0,0.42323143]
[1765986907779,0.0114059,87694.0,87648.0,0.0114117]
[1765986907979,0.25008671,87699.0,87648.0,0.0114117]
[1765986908286,0.25008671,87699.0,87620.0,0.0114153]
[1765986908287,0.0114101,87661.0,87620.0,0.0114153]
[1765986908480,0.00017115,87652.0,87620.0,0.0114153]
[1765986908673,0.00017115,87652.0,87633.0,0.0114136]
[1765986908880,0.00017115,87652.0,87590.0,0.42323143]
[1765986909088,0.00017115,87652.0,87599.0,0.00252]
[1765986909284,0.0114128,87641.0,87602.0,0.0114177]
[1765986909490,0.0114137,87633.0,87601.0,0.02793911]
[1765986909797,0.00017115,87626.0,87580.0,0.005]
[1765986909979,0.0114159,87616.0,87580.0,0.005]
[1765986910173,0.42323143,87600.0,87580.0,0.005]
[1765986910374,0.0114195,87589.0,87544.0,0.0114253]
[1765986910584,0.00017125,87575.0,87540.0,0.0001201]
[1765986910782,0.01152204,87574.0,87540.0,0.0001201]
[1765986911092,0.42323143,87550.0,87510.0,0.0114297]
[1765986911384,0.005,87519.0,87426.0,0.04582912]
[1765986911586,0.16452,87518.0,87452.0,0.0114372]
[1765986911773,0.42323143,87510.0,87442.0,0.0571927]
[1765986911978,0.42323143,87500.0,87451.0,0.0114374]
[1765986912177,0.0001404,87499.0,87478.0,3.29e-06]
[1765986912378,0.3608,87492.0,87478.0,3.29e-06]
[1765986912578,0.3608,87492.0,87463.0,0.3608]
[1765986912579,0.3608,87483.0,87463.0,0.3608]
[1765986912782,0.3608,87464.0,87439.0,0.36094716]
[1765986912984,0.3608,87464.0,87409.0,0.05]
[1765986912985,0.3608,87456.0,87409.0,0.05]
[1765986913178,0.3608,87419.0,87409.0,0.05]
[1765986913379,0.00017156,87423.0,87409.0,0.05]
[1765986913689,0.3108,87419.0,87409.0,0.05]
[1765986913878,0.3608,87411.0,87409.0,0.05]
[1765986914074,0.4,87410.0,87400.0,0.11128027]
[1765986914280,0.3608,87401.0,87372.0,0.3658]
[1765986914489,0.3608,87381.0,87372.0,0.005]
[1765986914680,9.408e-05,87380.0,87372.0,0.005]
[1765986914882,0.22169408,87388.0,87378.0,0.3548]
[1765986915088,0.3608,87379.0,87372.0,0.005]
[1765986915288,0.3608,87378.0,87354.0,0.3608]
[1765986915493,0.3608,87369.0,87346.0,0.3608]
[1765986915684,0.68528,87374.0,87354.0,0.3608]
[1765986915986,0.00017167,87375.0,87354.0,0.3608]
[1765986916192,0.3608,87371.0,87354.0,0.3608]
[1765986916389,0.3608,87371.0,87294.0,0.28668]
[1765986916390,0.3608,87361.0,87338.0,0.24168]
[1765986916688,0.00010304,87360.0,87339.0,0.3608]
[1765986916881,0.00017167,87358.0,87347.0,0.3608]
[1765986917081,7e-08,87358.0,87339.0,0.3608]
[1765986917279,0.3608,87414.0,87366.0,0.0572428]
[1765986917483,0.3608,87424.0,87403.0,0.3608]
[1765986917692,0.3608,87424.0,87413.0,0.3608]
[1765986917987,0.3608,87416.0,87403.0,0.3608]
[1765986918182,9.351e-05,87415.0,87412.0,0.3608]
[1765986918385,0.3608,87450.0,87414.0,0.005]
[1765986918578,0.3608,87450.0,87427.0,0.3608]
[1765986918783,0.3608,87440.0,87414.0,0.005]
[1765986918979,0.3608,87431.0,87414.0,0.005]
[1765986919284,0.3608,87424.0,87414.0,0.00517157]
[1765986919490,9.777e-05,87430.0,87421.0,0.3608]
[1765986920089,0.3608,87480.0,87436.0,0.0114393]
[1765986920285,0.3608,87478.0,87466.0,0.3608]
[1765986920482,0.3608,87478.0,87463.0,0.3608]
[1765986920693,0.3608,87488.0,87475.0,0.3608]
[1765986920990,8.37e-05,87476.0,87470.0,0.7216]
[1765986921295,0.3658,87519.0,87474.0,0.0114343]
[1765986921595,0.3608,87497.0,87481.0,0.3608]
[1765986921887,0.3608,87500.0,87478.0,0.3608]
[1765986922087,0.00017146,87498.0,87489.0,0.3608]
[1765986922288,0.05414624,87518.0,87493.0,0.3608]
[1765986922589,0.3608,87529.0,87480.0,0.00017146]
[1765986922590,0.3608,87540.0,87517.0,0.3608]
[1765986922792,0.3608,87541.0,87526.0,0.3608]
[1765986923090,0.3608,87527.0,87497.0,0.005]
[1765986923289,4.08e-06,87526.0,87523.0,0.3608]
[1765986923481,0.3608,87542.0,87523.0,0.3608]
[1765986923679,0.3608,87530.0,87506.0,0.3608]
[1765986923881,0.3608,87521.0,87506.0,0.3608]
[1765986924079,0.3608,87530.0,87506.0,0.3608]
[1765986924284,0.00011165,87527.0,87515.0,0.3608]
[1765986924578,0.00011165,87527.0,87509.0,0.00017135]
[1765986924579,0.3608,87525.0,87518.0,0.32746]
[1765986924782,0.005,87560.0,87520.0,0.3608]
[1765986924783,0.3608,87554.0,87520.0,0.3608]
[1765986924984,0.3608,87605.0,87553.0,0.3608]
[1765986925184,0.05,87609.0,87547.0,0.0114248]
[1765986925385,0.0114185,87596.0,87552.0,0.0114241]
[1765986925576,0.3608,87578.0,87566.0,0.00017135]
[1765986925790,0.28568,87593.0,87574.0,0.3608]
[1765986925985,0.3608,87589.0,87574.0,0.3608]
[1765986926694,0.28568,87593.0,87574.0,0.3608]
[1765986926894,0.3608,87590.0,87574.0,0.46070001]
[1765986927280,0.3608,87598.0,87574.0,0.46070001]
[1765986927481,0.04614359,87617.0,87597.0,0.3608]
[1765986927691,0.3608,87661.0,87607.0,0.3608]
[1765986927896,0.28568,87636.0,87624.0,0.3608]
[1765986928093,0.3608,87634.0,87624.0,0.3608]
[1765986928290,0.28568,87632.0,87620.0,0.00017115]
[1765986928598,0.28568,87632.0,87591.0,0.11417871]
[1765986928599,0.0114159,87616.0,87593.0,0.3608]
[1765986928795,0.3608,87624.0,87603.0,0.3608]
[1765986929101,0.3608,87642.0,87619.0,0.3608]
[1765986929302,0.28568,87637.0,87619.0,0.3608]
[1765986929501,0.28568,87637.0,87580.0,0.005]
[1765986929502,0.3608,87621.0,87580.0,0.005]
[1765986929683,0.3608,87593.0,87592.0,5e-08]
[1765986929885,0.7216,87593.0,87550.0,0.3608]
[1765986930097,0.3608,87555.0,87531.0,0.3608]
[1765986930599,0.7216,87545.0,87521.0,0.3608]
[1765986930897,0.3608,87558.0,87533.0,0.36097126]
[1765986931200,0.28568,87555.0,87541.0,0.3608]
[1765986931497,0.3608,87558.0,87541.0,0.3608]
[1765986931691,0.28568,87557.0,87541.0,0.3608]
[1765986931890,4.442e-05,87556.0,87541.0,0.3608]
[1765986933306,0.3608,87544.0,87540.0,0.00017126]
[1765986933600,4.442e-05,87556.0,87540.0,0.00017126]
[1765986933792,0.00017072,87558.0,87555.0,0.3608]
[1765986934002,0.005,87602.0,87540.0,0.36097126]
[1765986934003,0.3608,87630.0,87573.0,0.3608]
[1765986934188,0.3608,87630.0,87556.0,0.38164]
[1765986934189,0.0114132,87637.0,87612.0,0.29412]
[1765986934503,0.3608,87651.0,87619.0,0.3608]
[1765986934703,0.3608,87659.0,87643.0,0.31079]
[1765986934897,1e-07,87644.0,87643.0,0.31079]
[1765986935303,0.3441301,87650.0,87635.0,0.00017115]
[1765986935495,0.3608,87639.0,87612.0,0.3608]
[1765986935694,0.3608,87630.0,87612.0,0.3608]
[1765986936407,0.3608,87642.0,87628.0,0.3608]
[1765986936699,0.00517078,87644.0,87636.0,0.3608]
[1765986936906,0.3608,87637.0,87593.0,0.3609016]
[1765986937102,0.3608,87605.0,87593.0,0.0001016]
[1765986937292,0.3608,87618.0,87593.0,0.0001016]
[1765986937602,0.005,87644.0,87617.0,0.3608]
[1765986937808,0.3608,87627.0,87617.0,0.3608]
[1765986938102,5e-08,87631.0,87619.0,0.0114165]
[1765986938305,0.3608,87661.0,87633.0,0.0114147]
[1765986938602,0.3608,87661.0,87643.0,0.3608]
[1765986938901,0.3608,87661.0,87630.0,0.3608]
[1765986939099,0.3608,87689.0,87660.0,0.3608]
[1765986939289,0.00017078,87681.0,87678.0,0.3608]
[1765986939489,0.00017078,87681.0,87670.0,0.3608]
[1765986939694,0.00017078,87681.0,87664.0,0.36097115]
[1765986939995,0.00017078,87681.0,87665.0,0.3608]
[1765986940301,0.3658,87685.0,87665.0,0.3608]
[1765986940501,0.3608,87675.0,87665.0,0.3608]
[1765986940700,0.3608,87666.0,87645.0,0.3608]
[1765986940908,0.005,87685.0,87662.0,0.011411]
[1765986940909,5e-08,87664.0,87662.0,0.011411]
[1765986941091,0.005,87685.0,87663.0,0.3608]
[1765986941401,0.005,87685.0,87684.0,0.3608]
[1765986941590,0.3608,87685.0,87665.0,0.3608]
[1765986941794,0.48315957,87710.0,87663.0,0.005]
[1765986941795,0.3608,87683.0,87663.0,0.005]
[1765986941990,0.00017078,87682.0,87670.0,0.3608]
[1765986942199,0.00017078,87682.0,87678.0,0.3608]
[1765986942401,0.00017078,87682.0,87664.0,0.00017115]
[1765986942602,0.3608,87665.0,87663.0,5e-08]
[1765986942810,0.3608,87664.0,87663.0,5e-08]
[1765986943505,0.3608,87672.0,87663.0,5e-08]
[1765986943704,0.3722108,87664.0,87643.0,0.3608]
[1765986944012,0.3608,87644.0,87623.0,0.3608]
[1765986944195,0.3608,87636.0,87623.0,0.3608]
[1765986944395,0.3608,87628.0,87614.0,0.3608]
[1765986944801,0.40792,87657.0,87622.0,0.3658]
[1765986944802,0.00017115,87634.0,87622.0,0.3658]
[1765986945300,0.3608,87628.0,87622.0,0.3658]
[1765986945496,0.3608,87628.0,87616.0,0.00017115]
[1765986945497,0.3608,87626.0,87616.0,5e-08]
[1765986945701,0.3608,87617.0,87616.0,5e-08]
[1765986945903,5e-08,87634.0,87616.0,0.36080005]
[1765986946203,0.3608,87653.0,87633.0,0.3608]
[1765986946403,0.3608,87643.0,87627.0,0.3608]
[1765986946708,0.3608,87653.0,87627.0,0.3608]
[1765986947008,1.42788,87669.0,87631.0,0.00017115]
[1765986947009,0.3608,87644.0,87631.0,0.00017115]
[1765986947202,0.3608,87628.0,87610.0,0.3608]
[1765986947411,0.3608,87619.0,87604.0,0.3608]
[1765986947599,0.3608,87611.0,87585.0,0.3608]
[1765986947799,0.3608,87602.0,87588.0,0.0114207]
[1765986948001,0.3608,87623.0,87600.0,0.3608]
[1765986948209,0.00017115,87620.0,87603.0,0.00017115]
[1765986948705,0.3608,87605.0,87603.0,0.00017115]
[1765986948904,0.3722185,87605.0,87603.0,5e-08]
[1765986949105,0.3608,87605.0,87585.0,0.3608]
[1765986949501,0.3608,87607.0,87593.0,0.3608]
[1765986949809,0.3608,87596.0,87585.0,0.3608]
[1765986950110,9.923e-05,87595.0,87582.0,0.00017125]
[1765986950606,0.36097125,87599.0,87582.0,0.00017125]
[1765986950607,5e-08,87599.0,87583.0,0.3608]
[1765986950810,0.0114178,87610.0,87592.0,0.3608]
[1765986951009,0.3608,87593.0,87582.0,0.00017125]
[1765986951205,0.3608,87617.0,87592.0,0.3608]
[1765986951404,0.3608,87618.0,87592.0,0.3608]
[1765986951711,0.3608,87618.0,87494.0,0.001]
[1765986951712,0.0114213,87584.0,87570.0,0.3608]
[1765986951905,0.011418,87609.0,87568.0,0.00017125]
[1765986951906,0.3608,87572.0,87568.0,0.00017125]
[1765986952111,0.3722228,87572.0,87549.0,0.3608]
[1765986952309,0.00017125,87586.0,87538.0,0.3658]
[1765986952310,0.3608,87563.0,87538.0,0.3658]
[1765986952504,0.0114221,87578.0,87561.0,0.3608]
[1765986952905,0.0114208,87588.0,87571.0,0.3608]
[1765986953102,0.00017125,87588.0,87581.0,0.3608]
[1765986953308,0.00017125,87588.0,87571.0,0.36097125]
[1765986953309,0.3608,87600.0,87571.0,0.36097125]
[1765986953512,0.3608,87590.0,87571.0,0.36097125]
[1765986953710,0.3608,87581.0,87571.0,0.36097125]
[1765986954011,0.3608,87581.0,87571.0,0.00017125]
[1765986954220,0.0114217,87580.0,87566.0,0.3608]
[1765986954600,0.3608,87572.0,87552.0,0.3608]
[1765986954808,0.3608,87581.0,87565.0,0.3608]
[1765986955511,0.3608,87581.0,87552.0,0.3608]
[1765986955512,0.3608,87568.0,87552.0,0.3608]
[1765986955718,0.3608,87572.0,87552.0,0.3608]
[1765986955904,0.3608,87572.0,87553.0,0.0114252]
[1765986956108,0.00017125,87582.0,87571.0,0.3608]
[1765986956307,1.25e-06,87582.0,87581.0,0.3608]
[1765986956713,0.36080125,87582.0,87549.0,0.3608]
[1765986957018,0.3608,87572.0,87558.0,0.3608]
[1765986957613,0.3608,87563.0,87556.0,0.00017125]
[1765986957814,0.3608,87560.0,87556.0,0.00017125]
[1765986958014,0.36080125,87582.0,87557.0,0.3608]
[1765986958316,0.36080125,87582.0,87556.0,0.00017125]
[1765986958317,1.25e-06,87582.0,87581.0,0.34413]
[1765986959418,0.3608,87613.0,87581.0,0.34413]
[1765986959622,0.3608,87595.0,87587.0,0.3608]
[1765986959815,0.3608,87595.0,87580.0,0.005]
[1765986960022,0.3608,87596.0,87584.0,0.3608]
[1765986960313,0.3608,87596.0,87544.0,0.0114264]
[1765986960314,0.3608,87588.0,87552.0,0.3608]
[1765986960515,0.005,87602.0,87583.0,0.7216]
[1765986960713,0.3608,87614.0,87595.0,0.3608]
[1765986960923,0.005,87644.0,87583.0,0.3722212]
[1765986960924,0.0114137,87642.0,87615.0,0.0114171]
[1765986961108,0.005,87644.0,87623.0,0.3608]
[1765986961416,0.00017125,87642.0,87628.0,0.3608]
[1765986961719,0.3608,87668.0,87639.0,0.34413]
[1765986961906,0.3608,87668.0,87622.0,0.005]
[1765986961907,0.3608,87653.0,87629.0,0.3608]
[1765986962215,0.3608,87671.0,87641.0,0.3608]
[1765986962609,0.3608,87671.0,87651.0,0.3608]
[1765986962917,0.00017115,87665.0,87659.0,0.3608]
[1765986963121,0.0114083,87683.0,87659.0,0.3608]
[1765986963416,0.3608,87660.0,87647.0,0.00017115]
[1765986963619,0.0570675,87644.0,87600.0,0.1]
[1765986963812,0.3608,87640.0,87611.0,0.3722177]
[1765986964014,0.3608,87660.0,87630.0,0.3608]
[1765986964322,0.09005256,87700.0,87630.0,0.3608]
[1765986964323,0.02839428,87676.0,87667.0,0.0114103]
[1765986964522,0.0114065,87698.0,87673.0,0.3608]
[1765986964723,1.15e-06,87676.0,87673.0,0.3608]
[1765986965017,0.2052,87709.0,87675.0,0.3608]
[1765986965222,0.3608,87710.0,87684.0,0.3608]
[1765986965424,0.3608,87710.0,87694.0,0.31079]
[1765986965625,0.3608,87710.0,87694.0,0.29412]
[1765986965827,0.3608,87708.0,87694.0,0.29412]
[1765986966726,0.3722051,87708.0,87694.0,0.27745]
[1765986966927,0.3608,87708.0,87694.0,0.27745]
[1765986967318,0.3608,87695.0,87692.0,0.00017104]
[1765986967615,0.3608,87708.0,87670.0,0.3608]
[1765986967924,0.165,87718.0,87663.0,0.005]
[1765986967925,0.165,87718.0,87707.0,0.3608]
[1765986968113,0.3608,87739.0,87716.0,0.3608]
[1765986968527,0.25,87738.0,87716.0,0.3608]
[1765986968726,4e-08,87730.0,87725.0,0.3608]
[1765986969327,0.3608,87745.0,87725.0,0.3608]
[1765986969526,0.3608,87745.0,87725.0,0.3722028]
[1765986969724,0.3608,87745.0,87733.0,0.3608]
[1765986970317,0.3608,87751.0,87733.0,0.3608]
[1765986971022,0.3608,87734.0,87730.0,4e-08]
[1765986971220,0.0114027,87726.0,87713.0,0.3608]
[1765986971520,0.3608,87726.0,87713.0,0.3608]
[1765986971726,0.3608,87734.0,87713.0,0.3608]
[1765986971914,0.3608,87745.0,87713.0,0.3608]
[1765986971915,0.0113994,87743.0,87723.0,0.3608]
[1765986972120,0.0113999,87740.0,87723.0,0.3608]
[1765986972430,0.31079,87737.0,87723.0,0.36097095]
[1765986972625,0.31079,87737.0,87723.0,5e-08]
[1765986972830,0.3608,87725.0,87712.0,0.3608]
[1765986973126,0.00017095,87740.0,87724.0,0.3608]
[1765986973324,0.3608,87750.0,87733.0,0.3608]
[1765986973517,0.3608,87741.0,87720.0,0.3608]
[1765986973717,0.3721997,87741.0,87720.0,0.3608]
[1765986973918,0.3608,87752.0,87746.0,0.005]
[1765986974120,0.011399,87746.0,87720.0,0.3608]
[1765986974322,0.3608,87747.0,87728.0,0.3608]
[1765986974626,0.3608,87763.0,87746.0,0.3608]
[1765986974824,0.3608,87763.0,87738.0,0.3608]
[1765986975127,0.3608,87742.0,87705.0,0.005]
[1765986975316,0.00017006,87732.0,87722.0,0.3608]
[1765986975519,0.3608,87752.0,87731.0,0.3608]
[1765986975720,0.005,87768.0,87751.0,0.3608]
[1765986975919,0.3608,87762.0,87751.0,0.3608]
[1765986976114,0.005,87768.0,87751.0,0.3608]
[1765986976325,0.0113952,87775.0,87760.0,0.3608]
[1765986976527,0.3608,87776.0,87759.0,0.00017095]
[1765986976729,0.3608,87763.0,87746.0,5e-08]
[1765986976928,0.0113963,87767.0,87751.0,0.3608]
[1765986977231,0.3608,87754.0,87746.0,5e-08]
[1765986977422,0.3608,87760.0,87746.0,0.005]
[1765986977726,0.0113999,87739.0,87727.0,0.3608]
[1765986977926,0.3608,87728.0,87724.0,0.00017095]
[1765986978123,0.3608,87728.0,87717.0,0.3608]
[1765986978326,0.3608,87737.0,87717.0,0.3608]
[1765986978534,0.0114007,87733.0,87717.0,0.3608]
[1765986978832,0.3608,87734.0,87717.0,0.3608]
[1765986979033,0.0114031,87724.0,87702.0,0.3608]
[1765986979334,0.3608,87715.0,87702.0,0.3722058]
[1765986979524,0.3608,87715.0,87702.0,0.3608]
[1765986979839,0.3608,87707.0,87701.0,0.00017095]
[1765986980229,0.3608,87707.0,87691.0,0.3608]
[1765986980432,0.0114052,87707.0,87691.0,0.3608]
[1765986980642,0.0114058,87703.0,87691.0,0.3608]
[1765986980827,0.3722064,87698.0,87674.0,0.3608]
[1765986981023,0.3608,87687.0,87668.0,9.669e-05]
[1765986981326,0.3608,87679.0,87668.0,9.669e-05]
[1765986981531,0.3608,87679.0,87669.0,0.00017104]
[1765986981726,0.3608,87696.0,87677.0,0.0114091]
[1765986981926,0.3608,87696.0,87685.0,0.3608]
[1765986982733,0.3608,87704.0,87686.0,0.0114079]
[1765986982926,0.3608,87714.0,87695.0,0.3608]
[1765986983126,0.3608,87714.0,87696.0,0.00017104]
[1765986983621,0.3608,87706.0,87696.0,0.00017104]
[1765986984127,0.3608,87697.0,87685.0,0.3608]
[1765986984332,0.3608,87697.0,87685.0,0.372208]
[1765986984833,0.09177358,87729.0,87709.0,4.8e-06]
[1765986985032,0.3608,87734.0,87718.0,0.34413]
[1765986985033,0.00017104,87727.0,87718.0,0.34413]
[1765986985530,0.00017104,87727.0,87709.0,0.00017104]
[1765986985531,0.3608,87725.0,87709.0,0.00017104]
[1765986986038,0.3608,87712.0,87705.0,0.005]
[1765986986231,0.25943626,87740.0,87710.0,0.7216]
[1765986986441,0.0114027,87727.0,87710.0,0.3608]
[1765986986729,0.0114031,87724.0,87710.0,0.3608]
[1765986987230,4e-08,87726.0,87720.0,0.0114034]
[1765986987430,0.3608,87742.0,87720.0,0.3608]
[1765986987736,1.1594789,87764.0,87741.0,0.3608]
[1765986988031,1.2645302,87764.0,87741.0,0.34413]
[1765986988330,1.2645302,87764.0,87700.0,0.42447125]
[1765986988331,0.3608,87742.0,87724.0,0.3608]
[1765986988528,0.7216,87725.0,87699.0,0.0114062]
[1765986988723,0.3608,87717.0,87698.0,0.0114063]
[1765986988926,0.3608,87724.0,87700.0,0.3608]
[1765986989126,0.3608,87716.0,87700.0,0.3608]
[1765986989431,0.3608,87705.0,87692.0,0.3608]
[1765986989819,0.3608,87705.0,87683.0,0.3722083]
[1765986990124,0.3608,87705.0,87683.0,0.3608]
[1765986990324,0.3608,87708.0,87693.0,0.3608]
[1765986990520,0.3608,87710.0,87693.0,0.3608]
[1765986990731,0.3608,87694.0,87667.0,0.7586]
[1765986990934,0.32746,87682.0,87671.0,0.0114098]
[1765986991150,0.3608,87686.0,87667.0,0.7586]
[1765986991324,0.3608,87678.0,87668.0,0.00026773]
[1765986991534,0.23915555,87700.0,87675.0,0.3608]
[1765986991831,0.3608,87678.0,87668.0,0.00026773]
[1765986992035,0.3608,87686.0,87668.0,0.00026773]
[1765986992240,0.3608,87678.0,87666.0,0.3608]
[1765986992536,0.3608,87668.0,87647.0,0.0114129]
[1765986992732,0.3608,87660.0,87649.0,0.3608]
[1765986992935,0.005,87685.0,87671.0,0.0114098]
[1765986993132,0.0114053,87707.0,87679.0,0.3608]
[1765986993342,0.00017104,87702.0,87684.0,0.00017104]
[1765986993534,0.00017104,87702.0,87698.0,0.3608]
[1765986993930,0.3608,87701.0,87684.0,0.00017104]
[1765986994130,0.3608,87693.0,87684.0,0.00017104]
[1765986994329,0.00017104,87702.0,87691.0,0.3608]
[1765986994530,1.04e-06,87702.0,87691.0,0.3608]
[1765986995035,1.04e-06,87702.0,87699.0,0.34413]
[1765986995242,0.3608,87700.0,87684.0,0.00017104]
[1765986995632,0.3722061,87700.0,87684.0,0.00017104]
[1765986995941,0.3608,87688.0,87637.0,0.3608]
[1765986996238,0.3608,87688.0,87663.0,0.3608]
[1765986996239,0.3608,87682.0,87663.0,0.3608]
[1765986996640,0.3608,87674.0,87645.0,0.3608]
[1765986996940,0.3608,87674.0,87661.0,0.3608]
[1765986997126,0.3608,87682.0,87661.0,0.3608]
[1765986997635,0.3608,87674.0,87661.0,0.3608]
[1765986997837,0.3608,87674.0,87651.0,0.00017104]
[1765986997838,0.0114112,87661.0,87651.0,0.00017104]
[1765986998143,0.3608,87652.0,87651.0,0.00017104]
[1765986998640,0.3608,87652.0,87638.0,0.01151149]
[1765986998841,0.3608,87652.0,87638.0,9.729e-05]
[1765986999028,0.3608,87643.0,87638.0,9.729e-05]
[1765986999235,0.0114137,87642.0,87624.0,0.3608]
[1765986999539,0.3608,87634.0,87625.0,0.0114159]
[1765986999735,0.011413,87647.0,87633.0,0.3608]
[1765986999934,0.3608,87651.0,87633.0,0.3608]
[1765987000335,0.3608,87642.0,87624.0,0.36097114]
[1765987000541,9.729e-05,87650.0,87614.0,0.3608]
[1765987000542,0.3608,87625.0,87614.0,0.3608]
[1765987000732,0.3608,87615.0,87600.0,0.1]
[1765987000932,0.34413,87615.0,87600.0,0.1]
[1765987001738,0.34413,87615.0,87602.0,0.3608]
[1765987002135,0.34413,87615.0,87589.0,0.0114205]
[1765987002136,0.3608,87603.0,87579.0,0.0114218]
[1765987002447,0.3608,87594.0,87582.0,0.0114215]
[1765987002637,0.34422729,87594.0,87577.0,0.3608]
[1765987002838,0.32755729,87594.0,87577.0,0.3722221]
[1765987003143,0.32755729,87594.0,87540.0,0.00099999]
[1765987003144,0.3608,87651.0,87613.0,0.0114174]
[1765987003347,0.3608,87643.0,87627.0,0.3608]
[1765987003544,0.3608,87634.0,87619.0,0.3608]
[1765987003741,0.3608,87625.0,87611.0,0.3608]
[1765987003938,0.0114184,87606.0,87588.0,8.545e-05]
[1765987004144,5e-08,87606.0,87593.0,0.3608]
[1765987004446,0.3608,87612.0,87597.0,0.0114195]
[1765987004447,0.34413005,87612.0,87597.0,0.0114195]
[1765987004746,0.32746005,87612.0,87593.0,0.3608]
[1765987005043,0.32746005,87612.0,87593.0,0.3722199]
[1765987005242,0.33887765,87612.0,87592.0,0.3608]
[1765987005448,0.3608,87601.0,87588.0,0.0002567]
[1765987005944,0.32746005,87612.0,87590.0,0.3608]
[1765987006139,0.3608,87624.0,87590.0,0.3608]
[1765987006343,0.3608,87624.0,87602.0,0.3608]
[1765987006741,0.3608,87615.0,87599.0,0.3608]
[1765987006948,0.3608,87624.0,87599.0,0.3608]
[1765987007148,0.0114162,87623.0,87599.0,0.3608]
[1765987007360,0.3608,87615.0,87599.0,0.3608]
[1765987007539,0.3608,87624.0,87607.0,0.3608]
[1765987007734,0.0114167,87619.0,87607.0,0.36097125]
[1765987007938,0.0114162,87623.0,87607.0,0.00017125]
[1765987008146,0.3608,87616.0,87599.0,0.3608]
[1765987008341,0.3608,87616.0,87593.0,0.01142]
[1765987008542,0.3608,87625.0,87595.0,0.3608]
[1765987008942,0.3608,87613.0,87597.0,0.0114195]
[1765987009148,0.011418,87609.0,87596.0,0.00017125]
[1765987009340,0.3608,87613.0,87595.0,0.34430125]
[1765987009542,0.3608,87613.0,87595.0,0.35572095]
[1765987009741,0.3608,87613.0,87595.0,0.34430125]